Cogmind - Beta 17 @@@ ROGUE MODE // 2026.07.24 @ 01:10:29 Player: Suffixing Result: Destroyed by Y-54 Guardian with Gatling Laser Performance ------------- Evolutions (0) 0 Regions Visited (3) 600 Robots Destroyed (30) 150 Value Destroyed (814) 814 Prototype IDs (0) 0 Alien Tech Used (0) 0 Bonus (0) 0 TOTAL SCORE: 1564 Bonus ------- None Cogmind --------- Core Integrity 0/250 Matter 278/300 Energy 80/100 System Corruption 0% Temperature Warm (155) Movement Rolling (200) Ox8 Location -7/Recycling Parts ------- > --- POWER (1) -------- (None) > --- PROPULSION (2) --- Light Treads Wheel > --- UTILITY (2) ------ Huge Storage Unit > --- WEAPON (2) ------- Subdweller Laser Light Cannon > --- INVENTORY (25) --- Subdweller Power Source Subdweller Power Source Subdweller Monowheel Subdweller Monowheel Disposable Heat Sink Small Storage Unit Subdweller Optics Subdweller Optics Subdweller Optics Reactive Plating Scrap Shield Hacking Suite Power Bank Subdweller Machine Gun Light Cannon Light Cannon Light Cannon Light Cannon Battle Cannon Subdweller Shrapnel Launcher Heavy Rocket Launcher Shrapnel Trap Piercing Trap Peak State ------------ > --- POWER ------------ Ion Engine > --- PROPULSION ------- Light Treads Wheel > --- UTILITY ---------- Heat Sink Huge Storage Unit > --- WEAPON ----------- Subdweller Laser Light Cannon > --- INVENTORY -------- Subdweller Power Source Subdweller Power Source Subdweller Monowheel Subdweller Monowheel Disposable Heat Sink Small Storage Unit Subdweller Optics Subdweller Optics Subdweller Optics Reactive Plating Scrap Shield Hacking Suite Power Bank Subdweller Machine Gun Light Cannon Light Cannon Light Cannon Light Cannon Battle Cannon Subdweller Shrapnel Launcher Heavy Rocket Launcher Shrapnel Trap Piercing Trap [Rating: 13] Favorites ----------- Power Ion Engine Engine Ion Engine Propulsion Light Treads Treads Light Treads Leg Aluminum Leg Wheel Wheel Utility Huge Storage Unit Device Heat Sink Storage Huge Storage Unit Protection Light Armor Plating Weapon Light Cannon Energy Gun Subdweller Laser Energy Cannon Subdweller Beam Cannon Ballistic Gun Assault Rifle Ballistic Cannon Light Cannon Build | -11 -10 -10 -7 ------- Run | Yrd Mat Sub Rec Slots Evolved . | . . . . Power . | . . . . Propulsion . | . . . . Utility . | . . . . Weapon . | . . . . Parts Attached 14 | 2 4 8 . Power 1 | . . 1 . Engine 1 | . . 1 . Core . | . . . . Reactor . | . . . . Propulsion 5 | 2 . 3 . Treads 4 | 2 . 2 . Leg . | . . . . Wheel 1 | . . 1 . Hover . | . . . . Flight . | . . . . Utility 3 | . 2 1 . Device 1 | . 1 . . Storage 1 | . 1 . . Processor . | . . . . Hackware . | . . . . Protection 1 | . . 1 . Artifact . | . . . . Weapon 5 | . 2 3 . Energy Gun 1 | . . 1 . Energy Cannon 1 | . . 1 . Ballistic Gun . | . . . . Ballistic Cannon 3 | . 2 1 . Launcher . | . . . . Special Weapon . | . . . . Impact Weapon . | . . . . Slashing Weapon . | . . . . Piercing Weapon . | . . . . Special Melee Weapon . | . . . . Unidentified Prototypes . | . . . . Parts Lost 8 | . . 6 2 Power 2 | . . 1 1 Propulsion 3 | . . 3 . Utility 2 | . . 1 1 Weapon 1 | . . 1 . Highest Loss Streak 3 | . . 3 2 To Critical Strikes . | . . . . Average Backups 15 | 5 7 15 20 Power 1 | 1 1 1 2 Propulsion 2 | 4 2 3 2 Utility 5 | . 1 5 8 Weapon 5 | . 2 5 7 Tool/Special . | . . . . Unused Backups 19 | . . . 19 Power 2 | . . . 2 Propulsion 2 | . . . 2 Utility 9 | . . . 9 Weapon 6 | . . . 6 Tool/Special . | . . . . Average Slot Usage (%) 98 | . 93 99 99 Engine 13 | . 14 13 14 Treads 23 | . 28 24 14 Wheel 4 | . . 2 14 Device 8 | . 7 7 13 Storage 14 | . 14 14 14 Protection 3 | . . 6 . Energy Gun 9 | . . 10 14 Energy Cannon 2 | . . 4 . Ballistic Gun 1 | . 9 . . Ballistic Cannon 14 | . 18 13 14 Peak Build Rating 13 | 6 8 12 13 Average Rating 10 | 6 7 10 12 On Entrance 8 | 6 6 8 12 Avg Prop Armor Cover (%) 12 | . . 12 12 Naked Turns . | . . . . Heaviest Build 98 | 11 90 98 93 Greatest Support 40 | 40 40 40 10 Greatest Overweight (x) 9 | . 2 9 9 Average Overweight (x) 4 | . . 4 9 Largest Inventory Capacity 25 | 8 25 25 25 Average Capacity 22 | 8 11 25 25 Most Carried 24 | 5 10 23 24 Average Carried 17 | 4 7 17 23 Final Capacity 25 | 8 25 25 25 Final Carried 24 | 2 10 22 24 Class Distribution -------------------- 100% | Mutant Dominant Class ---------------- Mutant | -10/Materials Mutant | -10/Subcaves Mutant | -7/Recycling Resources | -11 -10 -10 -7 ----------- Run | Yrd Mat Sub Rec Matter Collected 808 | 190 254 364 . Remotely . | . . . . Salvage Created 760 | . 362 331 67 Parts 58 | . 28 28 2 Haulers Intercepted 1 | . 1 . . Recyclers Shooed 1 | . 1 . . Parts Field Recycled . | . . . . Retrieved Matter . | . . . . Parts Self-Destructed 24 | . . 24 . Prevented . | . . . . Parts Restored . | . . . . Kills | -11 -10 -10 -7 ------- Run | Yrd Mat Sub Rec Combat Hostiles Destroyed 26 | . 12 13 1 Guns 10 | . 6 3 1 Cannons 16 | . 6 10 . Classes Destroyed 7 | . 4 3 . Hauler 1 | . 1 . . Operator 1 | . 1 . . Turret 2 | . . 2 . Swarmer 10 | . 6 4 . Grunt 6 | . 6 . . Sentry 2 | . . 1 1 Subdweller 8 | . . 8 . Best Kill Streak 5 | . 5 3 1 Combat Bots Only 5 | . 5 3 1 Max Kills in Single Turn 1 | . 1 1 1 Gunslinging . | . . . . Exploded . | . . . . Melee . | . . . . Uniques/NPCs Destroyed . | . . . . Combat | -11 -10 -10 -7 -------- Run | Yrd Mat Sub Rec Hostile Shots Fired 218 | . 46 124 48 Missed 85 | . 18 51 16 Hits 133 | . 28 73 32 Projectile 133 | . 28 73 32 AOE 4 | . . 4 . Damage Taken 1382 | . 307 805 270 Core 255 | . 79 112 64 Absorbed by Shields . | . . . . Core Remaining (%) 100 | 100 . . . Volleys Fired 95 | . 31 55 9 Largest 2 | . 2 2 2 Hottest 140 | . 60 140 90 Shots Fired 180 | . 62 100 18 Gun 60 | . 30 21 9 Cannon 120 | . 32 79 9 Launcher . | . . . . Special . | . . . . Kinetic 142 | . 62 71 9 Thermal 38 | . . 29 9 Explosive . | . . . . Electromagnetic . | . . . . Robot Hit Streak 16 | . 11 9 16 Robot Miss Streak 7 | . 7 6 2 Penetration Max . | . . . . Secondary Targets 1 | . 1 . . Max Gunslinging Chain 1 | . 1 . . Shots Hit Robots 93 | . 35 45 13 Core Hits 47 | . 21 21 5 Critical Kills . | . . . . Critical Parts Destroyed . | . . . . Critical Strikes . | . . . . Melee Attacks . | . . . . Impact . | . . . . Slashing . | . . . . Piercing . | . . . . Sneak Attacks . | . . . . Combat Hostiles . | . . . . Follow-up Attacks . | . . . . Damage Inflicted 1562 | . 512 869 181 Guns 446 | . 217 147 82 Cannons 1097 | . 288 722 87 Explosions . | . . . . Melee . | . . . . Ramming 19 | . 7 . 12 Kinetic 1259 | . 505 667 87 Thermal 284 | . . 202 82 Explosive . | . . . . Electromagnetic . | . . . . Impact . | . . . . Slashing . | . . . . Piercing . | . . . . Highest Corruption . | . . . . Average Corruption . | . . . . Corruption Purged . | . . . . Corruption Blocked . | . . . . Overload Shots . | . . . . Overflow Damage . | . . . . Projectiles . | . . . . Explosions . | . . . . Melee . | . . . . Knockbacks 7 | . 2 5 . Impact . | . . . . Kinetic 7 | . 2 5 . Secondary . | . . . . Self-Inflicted Damage 6 | . . . 6 Shots . | . . . . Rammed 4 | . 2 . 2 Targets Rammed 4 | . 2 . 2 Kicked . | . . . . Crushed . | . . . . Highest Temperature 137 | . 12 27 137 Average Temperature 27 | . 7 13 48 Received Heat Transfer 417 | . 114 201 102 Siege Activations . | . . . . Martial Activations . | . . . . Shielding Activations . | . . . . Robots Disrupted . | . . . . Combat Hostiles . | . . . . Robots Corrupted . | . . . . Combat Hostiles . | . . . . Parts Fried . | . . . . Impact Corruptions . | . . . . Robots Melted . | . . . . Combat Hostiles . | . . . . Parts Melted . | . . . . Heat Transferred 349 | . . 249 100 Parts Sabotaged . | . . . . Parts Stolen . | . . . . Parts Stripped . | . . . . Power Chain Reactions . | . . . . Alert | -11 -10 -10 -7 ------- Run | Yrd Mat Sub Rec Maximum Alert Level . | . . . . Low Security (%) 100 | 100 100 . 100 Level 1 . | . . . . Level 2 . | . . . . Level 3 . | . . . . Level 4 . | . . . . Level 5 . | . . . . High Security . | . . . . Max Security . | . . . . Peak Influence 94 | . 94 . 44 Initial . | . . . . Average 15 | . 28 . 4 Influence Increases 687 | . 302 275 110 Destroy 0b10 Robot/C 400 | . 240 140 20 Destroy 0b10 Robot/NC 10 | . 10 . . Destroy Leader 52 | . 52 . . Select Force Hacks 90 | . . . 90 Lose Combat Pursuer 135 | . . 135 . Influence Decreases 687 | . 302 275 110 Time Decay 667 | . 302 255 110 Lost Part 20 | . . 20 . Squads Dispatched 2 | . 2 . . Investigation 1 | . 1 . . Extermination . | . . . . Reinforcement 1 | . 1 . . Assault . | . . . . Garrison . | . . . . Intercept . | . . . . Searches Triggered . | . . . . Construction Impeded . | . . . . Haulers Reinforced . | . . . . Active Scanning Responses . | . . . . Cargo Convoy Interrupts . | . . . . Stealth | -11 -10 -10 -7 --------- Run | Yrd Mat Sub Rec Distress Signals . | . . . . Communications Jammed . | . . . . Distress Signals . | . . . . Times Spotted 35 | . 18 14 3 Peak Tracking Total 4 | . 3 4 2 Tactical Retreats 5 | . . 5 . Traps | -11 -10 -10 -7 ------- Run | Yrd Mat Sub Rec Traps Triggered 1 | . 1 . . Indirectly . | . . . . Trap Hack Attempts . | . . . . Triggered . | . . . . Disarmed . | . . . . Reprogrammed . | . . . . Reused . | . . . . Traps Extracted . | . . . . Installed . | . . . . Triggered . | . . . . Most Traps Carried 2 | . . 2 2 Machines | -11 -10 -10 -7 ---------- Run | Yrd Mat Sub Rec Machines Disabled 2 | . . 2 . Max in Single Turn 1 | . . 1 . Machines Repaired . | . . . . Machines Dismantled . | . . . . Machines Sabotaged . | . . . . Overloaded Fab Kills . | . . . . Hacking | -11 -10 -10 -7 --------- Run | Yrd Mat Sub Rec Machines Accessed 4 | . . 1 3 Terminals . | . . . . Fabricators . | . . . . Repair Stations . | . . . . Recycling Units 3 | . . . 3 Scanalyzers . | . . . . Garrison Access . | . . . . Total Hacks 10 | . . 5 5 Successful 8 | . . 5 3 Failed 2 | . . . 2 Catastrophic . | . . . . Database Lockouts . | . . . . Manual 5 | . . . 5 Terminals . | . . . . Fabricators . | . . . . Repair Stations . | . . . . Recycling Units 5 | . . . 5 Scanalyzers . | . . . . Garrison Access . | . . . . Terminal Hacks 5 | . . 5 . Record 5 | . . 5 . Fabricator Hacks . | . . . . Repair Station Hacks . | . . . . Recycling Unit Hacks . | . . . . Scanalyzer . | . . . . Garrison Access Hacks . | . . . . Unauthorized Hacks 3 | . . . 3 Terminals . | . . . . Fabricators . | . . . . Repair Stations . | . . . . Recycling Units 3 | . . . 3 Tunnel 3 | . . . 3 Scanalyzers . | . . . . Garrison Access . | . . . . Data Cores Recovered . | . . . . Used . | . . . . Hacking Detections . | . . . . Full Trace Events . | . . . . Feedback Events . | . . . . Feedback Blocked . | . . . . Robot Schematics Acquired . | . . . . Robots Built . | . . . . Authchips . | . . . . Time . | . . . . Total Robot Build Rating . | . . . . Part Schematics Acquired . | . . . . Parts Built . | . . . . Authchips . | . . . . Time . | . . . . Total Part Build Rating . | . . . . Part Studies Acquired . | . . . . Parts Repaired . | . . . . Time . | . . . . Parts Recycled . | . . . . Recycled Matter . | . . . . Retrieved Matter . | . . . . Retrieved Components . | . . . . Parts Scanalyzed . | . . . . Part Schematics Acquired . | . . . . Parts Damaged . | . . . . Bothacking | -11 -10 -10 -7 ------------ Run | Yrd Mat Sub Rec Used RIF Installer . | . . . . Robots Hacked . | . . . . Non-combat . | . . . . Combat . | . . . . Robot Hacks Applied . | . . . . Relay Couplers Released . | . . . . Fabnet Peak Effective % . | . . . . Robots Rewired . | . . . . Allies Hacked . | . . . . Hacks Repelled . | . . . . Allies | -11 -10 -10 -7 -------- Run | Yrd Mat Sub Rec Total Allies . | . . . . Largest Group . | . . . . Highest-Rated Group . | . . . . Highest-Rated Ally . | . . . . Total Orders . | . . . . Ally Attacks . | . . . . Total Damage . | . . . . Kills . | . . . . Allies Corrupted . | . . . . Allies Melted . | . . . . Intel | -11 -10 -10 -7 ------- Run | Yrd Mat Sub Rec Active Infowar (turns) . | . . . . Robot Analysis Total . | . . . . Derelict Logs Recovered 3 | . . 3 . Drone Launches . | . . . . Drone Recoveries . | . . . . Exploration | -11 -10 -10 -7 ------------- Run | Yrd Mat Sub Rec Turns Passed 6255 | 5 1107 3852 1291 Spaces Moved 2389 | 1 532 1270 586 Core . | . . . . Treads 1421 | 1 532 888 . Legs . | . . . . Wheels 968 | . . 382 586 Hover . | . . . . Flight . | . . . . Fastest Speed 160 | 160 160 215 215 Average Speed 246 | 160 182 288 215 Slowest Speed 320 | 160 320 320 215 Overloaded Moves . | . . . . Propulsion Burnouts . | . . . . Robots Hopped . | . . . . Potential Cave-ins . | . . . . Cave-ins Triggered . | . . . . Exploration Rate (%) 53 | 1 68 56 87 Regions Visited 3 Branch Regions 2 Pre-discovered Areas 4 | . . 1 3 Known Exits Taken . | . . . . Unknown Exits Taken 3 | 1 1 1 . Scrap Searched . | . . . . Spaces Dug . | . . . . Terrain Destroyed 2 | . . 2 . Melee . | . . . . Projectile 2 | . . 2 . AOE . | . . . . Terrain Rammed . | . . . . Walls Destroyed . | . . . . Machines Disabled . | . . . . Actions | -11 -10 -10 -7 --------- Run | Yrd Mat Sub Rec Total 2576 | 6 613 1358 599 Wait 36 | . 29 7 . Move 2386 | . 531 1269 586 Hop . | . . . . Pick Up 31 | . 12 17 2 Fast Attach . | . . . . Attach 9 | . 3 6 . Detach . | . . . . Swap 7 | 2 1 4 . Drop 8 | 4 4 . . Fire 95 | . 31 55 9 Melee . | . . . . Ram 2 | . . . 2 Kick . | . . . . Crush 2 | . 2 . . Escape Stasis . | . . . . Rewire . | . . . . Trap . | . . . . Miscellaneous . | . . . . Route ------- -11/Scrapyard -10/Materials (discovered 4 exits: [*Mat] / [*Min x2] / *Sub) -10/Subcaves (discovered 3 exits: *Mat x2 / *Rec) -7/Recycling History --------- Turn | Location | Event 6 | -11/Scrapyard | Discovered new exit (range 0) 6 | -11/Scrapyard | Entered Materials 253 | -10/Materials | Discovered new exit (range 4) 312 | -10/Materials | Build established: Mutant 528 | -10/Materials | Discovered new exit (range 5) 535 | -10/Materials | Discovered new exit (range 7) 722 | -10/Materials | Discovered new exit (range 7) 1113 | -10/Materials | Entered Subcaves 1296 | -10/Subcaves | Discovered new exit (range 15) 1318 | -10/Subcaves | Core integrity fell below 50% 1989 | -10/Subcaves | Visited Clippyterm 1998 | -10/Subcaves | Learned Factory emergency access door positions 1998 | -10/Subcaves | Learned Factory stockpile data 2035 | -10/Subcaves | Shifting Twisted Machinery released Shrapnel Trap 2047 | -10/Subcaves | Shifting Twisted Machinery released Sub. Laser 2969 | -10/Subcaves | Discovered new exit (range 15) 3367 | -10/Subcaves | Learned 2 Materials zone layouts 3757 | -10/Subcaves | Identified exit to Materials 4123 | -10/Subcaves | A Subdweller sparked back to life 4123 | -10/Subcaves | A Subdweller sparked back to life 4123 | -10/Subcaves | A Subdweller sparked back to life 4155 | -10/Subcaves | Found Prototype Device 4169 | -10/Subcaves | Lost 3 parts (2n1w) 4965 | -10/Subcaves | Entered Recycling 6250 | -7/Recycling | Core integrity fell below 20% 6256 | -7/Recycling | Destroyed by Y-54 Guardian with Gatling Laser Last Messages --------------- 05310_ Acquired Reactive Plating. 05572_ Connecting with Recycling Unit... 05572_ Current location identified: Recycling >>Force(Tunnel) DISCOVERED[-1/Command] 05621_ Connecting with Recycling Unit... >>Force(Tunnel) DISCOVERED[-7/Factory] 05791_ Connecting with Recycling Unit... >>Force(Tunnel) DISCOVERED[-3/Research] 05931_ Slammed into R-06 Scavenger. 06086_ Y-54 Guardian springs to life. 06088_ Y-54 Guardian destroyed. 06091_ R-06 Scavenger collects Lgt. Treads. 06094_ R-06 Scavenger collects Imp. Heat Sink. 06126_ Slammed into R-06 Scavenger. 06244_ Y-54 Guardian springs to life. 06249_ Heat Sink destroyed. 06255_ Ion Engine destroyed. Map ----- +----------------------------------------------------+ | ?????????????????????????????????????????????????? | | ?????????????????????????????????????????????????? | | ?????????????????????????????????????????????????? | | ?????????????????????????????????????????????????? | | ?????????????????????????????????????????????????? | | ?????????????????????????????????????????????????? | | ?????????????????????????????????????????????????? | | ?????????????????????????????????????????????????? | | ?????????????????????????????????????????????????? | | ?????????????????????????????????????????????????? | | ?????????????????????????????????????????????????? | | ?????????????????????????????????????????????????? | | ??????????????????????#####??????????????????????? | | ####?????????#####????#"""#??#???????????????????? | | ########### ######"Y"## ###?????????????????? | | #?????????????? | | ###### ## ###% #?????????????? | | #????###### #?# #?????????????? | | """ #?????????# #? % ???????????? | | """ %##????????# #?#Y % ???????????? | | """ %#????????# #?# ????????????? | | ##???######+### Y######"Y"##????????????? | | #????# # #??????""??????????????? | | #????# """"" # ###########??########### | | ##+####?# """"" # # #??# % # | | # #?# """"" # @# ! !#??# [ # | | # #?# + + ! #??# # | | + #?# # # #??# # | | # #?# "T" # #/! #??# # | | # #?# """ + # #??# ! # | | # #?# # # !! #???? %!!# | | # #?########## #] [ #????= !! ?? | | # #??????????# ###########????#+##+#??? | | # #?########## #??????????????# #??? | | # #?# # #??????????????# #??? | | # ### # #??????????????# #??? | | ### #### + ################ #??? | | !### #??##??## # #??? | | !#?# #???????# # #??? | | ####+#######?# # #??? | | ?# = #?########## ###### #??? | | ?# ! #??????????## ##????# #??? | | ?# #???????????# #?????# #??? | | ?# % #?????????###+#####?###########/##+#??? | | ?# ! #?????????# #???????# #??? | | + [ #?????????# """ #???????# """ #??? | | ?# ! #?????????# """ #???????# """ #??? | | ?# ! #?#######?# """ #?????#"" """ #??? | | ?########/#### #?# #######"T #??? | | ???# ### """ # #"" """ #??? | +----------------------------------------------------+ Best States ------------- Heat Dissipation 35 Energy Generation 10 Energy Capacity 250 Matter Stores 300 Matter Capacity 300 Sight Range 16 Terrain Scan Density 10 Armor Coverage 150 Evasion (%) 40 Recoil Reduction 2 Item Schematics ----------------- None Robot Schematics ------------------ None Fabricated ------------ Nothing Repaired ---------- Nothing Studied --------- None Alien Tech Used ----------------- None Achievements -------------- None Challenges ------------ None Game ------ Seed ScrapoidDeliverySpoofer Manual? 0 Play Time 00:17:26 Cumulative 64.0 hours Start 2026.07.24 @ 00:55:55 End 2026.07.24 @ 01:10:29 Sessions 1 Manual Loads 0 Difficulty Rogue Special Mode None Game No. 272 Rogue 227 Adventurer 45 Explorer 0 Win Type - Total 2 Types 2/0/0/0/0/0/0/0/0/0 Lore% 66 Gallery% 46 Achievement% 43 Wizard Run 0 Options --------- Layout 1 ASCII 0 Keyboard 0 Movement Numpad Keybinds 0 Fullscreen 1 Font 24/Smallcaps Map View 50x35 Zoom Use 0% Tactical HUD 1 Map Filters NONE Filters NONE Steam 1 RUN: f872370d-df9e-4afe-9d1e-2bd5126ed1d4